Cogmind - Beta 17 @@@ ROGUE MODE // 2026.07.19 @ 20:09:55 Player: LanceLander Result: Destroyed by X-67 Chaingunner with Heavy Machine Gun Performance ------------- Evolutions (5) 2500 Regions Visited (5) 1000 Robots Destroyed (63) 315 Value Destroyed (2308) 2308 Prototype IDs (47) 940 Alien Tech Used (0) 0 Bonus (573) 573 TOTAL SCORE: 7636 Bonus ------- High Alert Combat Kills 63 Follower Combat Kills 228 Registered with UFD 300 Friendly Fire -18 Cogmind --------- Core Integrity 0/1000 Matter 300/300 Energy 210/210 System Corruption 12% Temperature Cool (0) Movement Treading (160) Location -5/Factory Parts ------- > --- POWER (2) -------- Light Angular Momentum Engine Light Fission Core (fused) > --- PROPULSION (4) --- Improved Treads Improved Treads Improved VSS Leg Thunder Leg > --- UTILITY (8) ------ Advanced Heat Sink Improved Targeting Computer Makeshift Core Shielding (fused) Experimental Utility Shielding (fused) Improved Focal Shield Improved Thermal Defense Suite (fused) A0-MCA's Component Scanner Self-contained Transmogrifier > --- WEAPON (3) ------- Tesla Rifle Cooled Phase Cannon (fused) Plasma Sword > --- INVENTORY (5) ---- Improved Heat Sink Disruptor Cannon Large Botcube Peak State ------------ > --- POWER ------------ Neutrino Core Reinforced Antimatter Reactor > --- PROPULSION ------- Improved Medium Treads Centrium Heavy Treads Armored Leg > --- UTILITY ---------- Large Storage Unit Improved Kinecellerator Improved Medium Armor Plating Medium Insulated Plating Improved Thermal Defense Suite Shock Absorption System Makeshift System Shield Self-contained Transmogrifier > --- WEAPON ----------- Hypervelocity Mass Driver Heavy Hardcell Cannon > --- INVENTORY -------- Light Nuclear Core Maxwheels IFF Parser Matter Filter Kinecellerator Hardened Light Armor Plating Makeshift System Shield A0-MCA's Component Scanner Scrapoid Pod Large Botcube [Rating: 114] Favorites ----------- Power Light Nuclear Core Engine Ion Engine Power Core Light Nuclear Core Reactor Reinforced Antimatter Reactor Propulsion Compact Wheel Treads Spiked Medium Treads Leg Armored Leg Wheel Compact Wheel Hover Unit Antigrav System Flight Unit Cooled Field Propulsion Drive Utility Large Storage Unit Device Self-contained Transmogrifier Storage Large Storage Unit Processor Machine Analyzer Hackware Makeshift System Shield Protection Hardened Light Armor Plating Weapon Hypervelocity Mass Driver Energy Gun Spread Laser Energy Cannon Subdweller Beam Cannon Ballistic Gun Flak Gun Ballistic Cannon Hypervelocity Mass Driver Launcher Subdweller Shrapnel Launcher Slashing Weapon Plasma Sword Build | -11 -10 -10 -7 -7 -5 ------- Run | Yrd Mat Sub Rec Scr Fac Slots Evolved 10 | . . . . . 10 Power 1 | . . . . . 1 Propulsion 2 | . . . . . 2 Utility 6 | . . . . . 6 Weapon 1 | . . . . . 1 Parts Attached 87 | 7 10 14 1 5 50 Power 13 | 1 1 3 . 1 7 Engine 7 | 1 1 3 . . 2 Core 5 | . . . . 1 4 Reactor 1 | . . . . . 1 Propulsion 14 | 2 . 2 . . 10 Treads 3 | . . 1 . . 2 Leg 3 | . . . . . 3 Wheel 4 | 2 . 1 . . 1 Hover 1 | . . . . . 1 Flight 3 | . . . . . 3 Utility 33 | 2 2 2 . 2 25 Device 19 | 1 1 1 . 1 15 Storage 4 | 1 1 . . 1 1 Processor 5 | . . . . . 5 Hackware . | . . . . . . Protection 5 | . . 1 . . 4 Artifact . | . . . . . . Weapon 27 | 2 7 7 1 2 8 Energy Gun 16 | 2 6 2 . 1 5 Energy Cannon 3 | . 1 1 . . 1 Ballistic Gun 5 | . . 2 1 1 1 Ballistic Cannon 1 | . . 1 . . . Launcher 1 | . . 1 . . . Special Weapon . | . . . . . . Impact Weapon . | . . . . . . Slashing Weapon 1 | . . . . . 1 Piercing Weapon . | . . . . . . Special Melee Weapon . | . . . . . . Unidentified Prototypes 3 | . . 1 . . 2 Parts Lost 36 | . 1 6 1 . 28 Power 7 | . . 1 1 . 5 Propulsion 8 | . . 2 . . 6 Utility 12 | . 1 . . . 11 Weapon 9 | . . 3 . . 6 Highest Loss Streak 23 | . 1 6 1 . 23 To Critical Strikes . | . . . . . . Average Backups 9 | 2 8 12 11 7 5 Power . | . 1 1 . . . Propulsion 3 | 1 2 4 5 2 . Utility 3 | . 1 3 4 4 3 Weapon 1 | . 4 3 1 . . Tool/Special . | . . . . . . Unused Backups 13 | . 2 4 . 5 2 Power . | . . . . . . Propulsion 8 | . 2 2 . 4 . Utility 2 | . . . . 1 1 Weapon 3 | . . 2 . . 1 Tool/Special . | . . . . . . Average Slot Usage (%) 91 | . 99 95 94 92 81 Engine 6 | . 14 11 . 6 . Core 5 | . . . 8 7 5 Treads 15 | . . 9 28 20 7 Wheel 6 | . 28 18 . . . Device 15 | . 14 9 14 17 21 Storage 11 | . 14 14 14 10 3 Processor 1 | . . . . . 6 Protection 2 | . . 4 . . 7 Energy Gun 4 | . 27 6 . 1 3 Energy Cannon 1 | . . 2 5 . 1 Ballistic Gun 8 | . . 8 16 11 . Ballistic Cannon 7 | . . 4 5 11 6 Launcher 2 | . . 4 . 3 . Peak Build Rating 114 | 9 13 30 35 61 114 Average Rating 42 | 5 10 19 32 44 93 On Entrance 24 | . 9 13 30 35 59 Avg Prop Armor Cover (%) 7 | . . 17 . . 5 Naked Turns . | . . . . . . Heaviest Build 118 | 15 32 46 40 58 118 Greatest Support 110 | 32 32 50 58 85 110 Greatest Overweight (x) 9 | . . 2 . . 9 Average Overweight (x) . | . . . . . . Largest Inventory Capacity 15 | 8 15 15 15 15 15 Average Capacity 13 | 6 12 15 15 12 12 Most Carried 15 | 4 15 15 15 15 15 Average Carried 12 | 2 8 14 14 11 10 Final Capacity 15 | 8 15 15 15 15 5 Final Carried 15 | 4 15 14 14 15 4 Transmogrified Parts 104 | . . 12 18 40 34 Integrity Recovered 813 | . . 157 203 95 358 Class Distribution -------------------- 56% | Commander-Mutant 32% | Mutant 7% | Tank 3% | Scavenger-Mutant Dominant Class ---------------- Mutant | -10/Materials Mutant | -10/Subcaves Commander-Mutant | -7/Recycling Commander-Mutant | -7/Scraptown Tank | -5/Factory Resources | -11 -10 -10 -7 -7 -5 ----------- Run | Yrd Mat Sub Rec Scr Fac Matter Collected 2249 | 138 227 289 204 40 1351 Remotely 30 | . . . . . 30 Salvage Created 2112 | 42 196 217 52 . 1605 Parts 138 | 3 20 24 4 . 87 Haulers Intercepted 1 | . 1 . . . . Recyclers Shooed . | . . . . . . Parts Field Recycled . | . . . . . . Retrieved Matter . | . . . . . . Parts Self-Destructed 10 | . . 10 . . . Prevented . | . . . . . . Parts Restored . | . . . . . . Kills | -11 -10 -10 -7 -7 -5 ------- Run | Yrd Mat Sub Rec Scr Fac Combat Hostiles Destroyed 50 | . 3 13 1 . 33 Melee 6 | . . . . . 6 Guns 12 | . 3 3 . . 6 Cannons 21 | . . . 1 . 20 AOE 10 | . . 10 . . . Classes Destroyed 16 | 1 3 3 1 . 8 Worker 1 | . . . . . 1 Builder 2 | . . . . . 2 Tunneler 5 | 2 3 . . . . Hauler 1 | . 1 . . . . Recycler 2 | . 1 . . . 1 Turret 2 | . . 2 . . . Swarmer 20 | . 3 7 . . 10 Grunt 3 | . . . . . 3 Brawler 2 | . . . . . 2 Protector 1 | . . . . . 1 Sentry 4 | . . . 1 . 3 Specialist 2 | . . . . . 2 Hunter 2 | . . . . . 2 Programmer 10 | . . . . . 10 Cobbler 1 | . . 1 . . . Subdweller 6 | . . 6 . . . Best Kill Streak 6 | 2 3 4 1 . 6 Combat Bots Only 6 | . 3 4 1 . 6 Max Kills in Single Turn 3 | 1 2 3 1 . 2 Gunslinging . | . . . . . . Exploded 3 | . . 3 . . . Melee 1 | . . . . . 1 Uniques/NPCs Destroyed . | . . . . . . Combat | -11 -10 -10 -7 -7 -5 -------- Run | Yrd Mat Sub Rec Scr Fac Hostile Shots Fired 803 | . 19 162 63 . 559 Missed 220 | . 5 62 15 . 138 Hits 583 | . 14 100 48 . 421 Melee 2 | . . . . . 2 Projectile 581 | . 14 100 48 . 419 AOE 1 | . . 1 . . . Critical Strikes 7 | . . . . . 7 Part Disruptions 7 | . . . . . 7 Damage Taken 7409 | . 107 768 319 . 6215 Core 1266 | . 14 146 89 . 1017 Absorbed by Shields 238 | . . . 66 . 172 Reduced by Siege Mode 268 | . . . . . 268 Redirected to Shielding 2 | . . . . . 2 Ignored by Resistances 137 | . . . . . 137 Core Remaining (%) 50 | 100 . . . . . Volleys Fired 150 | 2 21 59 8 . 60 Largest 3 | 2 2 2 2 . 3 Hottest 244 | 80 130 130 89 . 244 Shots Fired 238 | 4 40 64 16 . 114 Gun 115 | 4 40 29 8 . 34 Cannon 107 | . . 19 8 . 80 Launcher 16 | . . 16 . . . Special . | . . . . . . Kinetic 108 | . . 16 10 . 82 Thermal 107 | . 30 47 . . 30 Explosive 1 | . . 1 . . . Electromagnetic 22 | 4 10 . 6 . 2 Robot Hit Streak 13 | 2 5 9 9 . 13 Robot Miss Streak 7 | . 7 3 2 . 6 Penetration Max 1 | . . . . . 1 Secondary Targets . | . . . . . . Shots Hit Robots 142 | 2 21 26 13 . 80 Core Hits 108 | 2 14 36 5 . 51 Critical Kills 16 | . . . . . 16 Critical Parts Destroyed 11 | . . . . . 11 Critical Strikes 35 | . 1 . . . 34 Burn 1 | . 1 . . . . Destroy 30 | . . . . . 30 Sever 4 | . . . . . 4 Melee Attacks 15 | . . . . . 15 Impact . | . . . . . . Slashing 15 | . . . . . 15 Piercing . | . . . . . . Sneak Attacks . | . . . . . . Combat Hostiles . | . . . . . . Follow-up Attacks . | . . . . . . Damage Inflicted 5093 | 26 281 1207 277 . 3302 Guns 1552 | 26 281 330 139 . 776 Cannons 2320 | . . 173 137 . 2010 Explosions 691 | . . 691 . . . Melee 481 | . . . . . 481 Ramming 49 | . . 13 1 . 35 Kinetic 2747 | . . 530 182 . 2035 Thermal 1484 | . 240 503 . . 741 Explosive 161 | . . 161 . . . Electromagnetic 171 | 26 41 . 94 . 10 Impact . | . . . . . . Slashing 481 | . . . . . 481 Piercing . | . . . . . . Highest Corruption 12 | . . . . . 12 Average Corruption 7 | . . . . . 7 Corruption Purged . | . . . . . . Corruption Blocked . | . . . . . . Effects 21 | . . . . . 21 Message Errors 3 | . . . . . 3 Matter Fused 5 | . . . . . 5 Heat Flow Errors 4 | . . . . . 4 Energy Discharges 2 | . . . . . 2 Parts Rejected 1 | . . . . . 1 Data Loss (minor) 4 | . . . . . 4 Alerts 2 | . . . . . 2 Overload Shots . | . . . . . . Overflow Damage 272 | . . . . . 272 Projectiles 272 | . . . . . 272 Explosions . | . . . . . . Melee . | . . . . . . Knockbacks 16 | . . . . . 16 Impact . | . . . . . . Kinetic 14 | . . . . . 14 Secondary 2 | . . . . . 2 Self-Inflicted Damage 61 | . . 45 . . 16 Shots 1 | . . 1 . . . Rammed 15 | . . 8 2 . 5 Targets Rammed 16 | . . 9 2 . 5 Kicked . | . . . . . . Crushed 1 | . . 1 . . . Highest Temperature 676 | 18 324 52 141 . 676 Average Temperature 111 | 12 89 19 58 . 143 Received Heat Transfer 1965 | . . 558 102 . 1305 Effects 16 | . 2 . . . 14 Shutdowns 2 | . . . . . 2 Energy Bleed 7 | . . . . . 7 Interference 4 | . 2 . . . 2 Matter Decay 1 | . . . . . 1 Damage (minor) 1 | . . . . . 1 Damage (core) 1 | . . . . . 1 Siege Activations 2 | . . . . . 2 Total Turns 63 | . . . . . 63 Longest Duration 39 | . . . . . 39 Martial Activations . | . . . . . . Shielding Activations . | . . . . . . Robots Disrupted . | . . . . . . Combat Hostiles . | . . . . . . Robots Corrupted . | . . . . . . Combat Hostiles . | . . . . . . Parts Fried . | . . . . . . Impact Corruptions . | . . . . . . Robots Melted 1 | . . . . . 1 Combat Hostiles 1 | . . . . . 1 Parts Melted 1 | . 1 . . . . Heat Transferred 2332 | . 628 622 . . 1082 Parts Sabotaged . | . . . . . . Parts Stolen . | . . . . . . Parts Stripped . | . . . . . . Power Chain Reactions . | . . . . . . Alert | -11 -10 -10 -7 -7 -5 ------- Run | Yrd Mat Sub Rec Scr Fac Maximum Alert Level 2 | . . . . . 2 Low Security (%) 73 | 100 100 . 100 . 36 Level 1 26 | . . . . . 62 Level 2 . | . . . . . 1 Level 3 . | . . . . . . Level 4 . | . . . . . . Level 5 . | . . . . . . High Security . | . . . . . . Max Security . | . . . . . . Peak Influence 435 | 5 52 . 26 . 435 Initial 3 | . 3 . . . . Average 93 | 1 8 . 2 . 218 Influence Increases 1651 | 10 108 190 119 . 1224 Destroy 0b10 Robot/C 1020 | . 60 180 60 . 720 Destroy 0b10 Robot/NC 60 | 10 25 . . . 25 Destroy Leader 152 | . 12 10 . . 130 Allied During Kill 55 | . . . 18 . 37 Successful Hack 52 | . 11 . 41 . . Disable Machine 30 | . . . . . 30 Destroy Structure 102 | . . . . . 102 Lose Combat Pursuer 180 | . . . . . 180 Influence Decreases 1305 | 5 113 190 119 . 878 Entered New Map 2 | . 2 . . . . Time Decay 843 | 5 101 130 119 . 488 Lost Part 350 | . 10 60 . . 280 Lost Ally 110 | . . . . . 110 Squads Dispatched 11 | . . . . . 11 Investigation 3 | . . . . . 3 Extermination 3 | . . . . . 3 Reinforcement 2 | . . . . . 2 Assault . | . . . . . . Garrison 3 | . . . . . 3 Intercept . | . . . . . . Searches Triggered . | . . . . . . Construction Impeded . | . . . . . . Haulers Reinforced . | . . . . . . Active Scanning Responses . | . . . . . . Cargo Convoy Interrupts 1 | . . . . . 1 Stealth | -11 -10 -10 -7 -7 -5 --------- Run | Yrd Mat Sub Rec Scr Fac Distress Signals 3 | . . . . . 3 Communications Jammed . | . . . . . . Distress Signals . | . . . . . . Times Spotted 84 | . 10 13 3 . 58 Peak Tracking Total 13 | . 3 6 1 . 13 Tactical Retreats 8 | . . . . . 8 Traps | -11 -10 -10 -7 -7 -5 ------- Run | Yrd Mat Sub Rec Scr Fac Traps Triggered 2 | . . . . . 2 Indirectly . | . . . . . . Trap Hack Attempts . | . . . . . . Triggered . | . . . . . . Disarmed . | . . . . . . Reprogrammed . | . . . . . . Reused . | . . . . . . Traps Extracted . | . . . . . . Installed . | . . . . . . Triggered . | . . . . . . Machines | -11 -10 -10 -7 -7 -5 ---------- Run | Yrd Mat Sub Rec Scr Fac Machines Disabled 4 | . . 2 . . 2 Max in Single Turn 1 | . . 1 . . . Machines Repaired . | . . . . . . Machines Dismantled . | . . . . . . Machines Sabotaged . | . . . . . . Overloaded Fab Kills . | . . . . . . Hacking | -11 -10 -10 -7 -7 -5 --------- Run | Yrd Mat Sub Rec Scr Fac Machines Accessed 20 | . 2 2 5 6 5 Terminals 8 | . 2 . 5 . 1 Fabricators . | . . . . . . Repair Stations . | . . . . . . Recycling Units 2 | . . . . . 2 Scanalyzers . | . . . . . . Garrison Access 2 | . . . . . 2 Total Hacks 82 | . 8 14 18 31 11 Successful 62 | . 3 14 12 31 2 Failed 20 | . 5 . 6 . 9 Catastrophic 5 | . . . 3 . 2 Database Lockouts . | . . . . . . Manual 20 | . 3 . 13 . 4 Terminals 29 | . 8 . 18 . 3 Fabricators . | . . . . . . Repair Stations . | . . . . . . Recycling Units 3 | . . . . . 3 Scanalyzers . | . . . . . . Garrison Access 5 | . . . . . 5 Terminal Hacks 55 | . 1 14 8 31 1 Record 45 | . . 13 . 31 1 Part Schematic 4 | . . . 4 . . Robot Analysis 1 | . . . 1 . . Prototype ID Bank 2 | . . . 2 . . Branch Access Points 1 | . 1 . . . . Terminal Index 1 | . . . 1 . . Proto ID Catalog 1 | . . 1 . . . Fabricator Hacks . | . . . . . . Repair Station Hacks . | . . . . . . Recycling Unit Hacks . | . . . . . . Scanalyzer . | . . . . . . Garrison Access Hacks . | . . . . . . Unauthorized Hacks 7 | . 2 . 4 . 1 Terminals 6 | . 2 . 4 . . Botnet 6 | . 2 . 4 . . Fabricators . | . . . . . . Repair Stations . | . . . . . . Recycling Units 1 | . . . . . 1 Fedlink 1 | . . . . . 1 Scanalyzers . | . . . . . . Garrison Access . | . . . . . . Data Cores Recovered 1 | . 1 . . . . Used . | . . . . . . Hacking Detections 11 | . 2 . 5 . 4 Full Trace Events 4 | . 1 . 2 . 1 Feedback Events . | . . . . . . Feedback Blocked . | . . . . . . Robot Schematics Acquired . | . . . . . . Robots Built . | . . . . . . Authchips . | . . . . . . Time . | . . . . . . Total Robot Build Rating . | . . . . . . Part Schematics Acquired 3 | . . . 3 . . Parts Built . | . . . . . . Authchips . | . . . . . . Time . | . . . . . . Total Part Build Rating . | . . . . . . Part Studies Acquired . | . . . . . . Parts Repaired . | . . . . . . Time . | . . . . . . Parts Recycled . | . . . . . . Recycled Matter . | . . . . . . Retrieved Matter . | . . . . . . Retrieved Components . | . . . . . . Parts Scanalyzed . | . . . . . . Part Schematics Acquired . | . . . . . . Parts Damaged . | . . . . . . Bothacking | -11 -10 -10 -7 -7 -5 ------------ Run | Yrd Mat Sub Rec Scr Fac Used RIF Installer . | . . . . . . Robots Hacked . | . . . . . . Non-combat . | . . . . . . Combat . | . . . . . . Robot Hacks Applied . | . . . . . . Relay Couplers Released 4 | . . . . . 4 Programmers 4 | . . . . . 4 Fabnet Peak Effective % . | . . . . . . Robots Rewired 8 | . . . 8 . . Allies Hacked 2 | . . . . . 2 Hacks Repelled . | . . . . . . Allies | -11 -10 -10 -7 -7 -5 -------- Run | Yrd Mat Sub Rec Scr Fac Total Allies 8 | . . . 8 . . Largest Group 8 | . . . 8 8 7 Highest-Rated Group 194 | . . . 194 194 184 Highest-Rated Ally 40 | . . . 40 40 40 Initial UFD Resources 38 | . . . . . 38 Total Orders 4 | . . . . 4 . TUNNEL 4 | . . . . 4 . Ally Attacks 30 | . . . 15 . 15 Total Damage 1079 | . . . 243 . 836 Kills 6 | . . . 2 . 4 Allies Corrupted 1 | . . . . . 1 Allies Melted . | . . . . . . Intel | -11 -10 -10 -7 -7 -5 ------- Run | Yrd Mat Sub Rec Scr Fac Active Infowar (turns) 2397 | 5 409 . . 944 1039 Sensors 150 | . . . . . 150 IFF 31 | . . . . . 31 Terrain 1358 | 5 409 . . 944 . Machine Analysis 828 | . . . . . 828 Cloaking 53 | . . . . . 53 Robot Analysis Total 1 | . . . 1 . . Derelict Logs Recovered 5 | . . 2 . 3 . Drone Launches . | . . . . . . Drone Recoveries . | . . . . . . Exploration | -11 -10 -10 -7 -7 -5 ------------- Run | Yrd Mat Sub Rec Scr Fac Turns Passed 10555 | 72 630 2499 1675 3970 1709 Spaces Moved 5907 | 53 529 1815 955 1730 825 Core 10 | 2 . . . . 8 Treads 3797 | . . 466 955 1730 646 Legs 4 | . . . . . 4 Wheels 1943 | 51 529 1349 . . 14 Hover . | . . . . . . Flight 153 | . . . . . 153 Fastest Speed 34 | 50 100 100 152 135 34 Average Speed 140 | 98 100 124 157 159 145 Slowest Speed 500 | 100 100 260 165 180 500 Overloaded Moves . | . . . . . . Propulsion Burnouts . | . . . . . . Robots Hopped 2 | . . . . . 2 Potential Cave-ins . | . . . . . . Cave-ins Triggered . | . . . . . . Exploration Rate (%) 56 | 4 53 74 99 91 18 Regions Visited 5 Branch Regions 3 Pre-discovered Areas 3 | . . 2 . 1 . Known Exits Taken . | . . . . . . Unknown Exits Taken 5 | 1 1 1 1 1 . Scrap Searched 5 | . . . . 5 . Spaces Dug . | . . . . . . Terrain Destroyed 229 | . . 216 . . 13 Melee . | . . . . . . Projectile 13 | . . . . . 13 AOE 216 | . . 216 . . . Terrain Rammed . | . . . . . . Walls Destroyed . | . . . . . . Machines Disabled . | . . . . . . Actions | -11 -10 -10 -7 -7 -5 --------- Run | Yrd Mat Sub Rec Scr Fac Total 7873 | 65 592 1984 1107 2942 1183 Wait 1508 | . 13 52 63 1179 201 Move 5898 | 52 528 1814 954 1729 821 Hop 2 | . . . . . 2 Pick Up 41 | 4 9 10 . 16 2 Fast Attach 69 | 7 6 12 1 4 39 Attach 19 | . 1 3 1 . 14 Detach 23 | . 6 1 1 4 11 Swap 15 | . 3 4 . 2 6 Drop 40 | . 5 20 . 8 7 Fire 150 | 2 21 59 8 . 60 Melee 15 | . . . . . 15 Ram 5 | . . . . . 5 Kick . | . . . . . . Crush 11 | . . 9 2 . . Escape Stasis . | . . . . . . Rewire 77 | . . . 77 . . Trap . | . . . . . . Miscellaneous . | . . . . . . Route ------- -11/Scrapyard -10/Materials (discovered 4 exits: [*Mat x2] / Min / *Sub) -10/Subcaves (discovered 3 exits: Mat / *Rec / *Scr) -7/Recycling (discovered 2 exits: *Fac / *Scr) -7/Scraptown (discovered 2 exits: *Fac x2) -5/Factory History --------- Turn | Location | Event 10 | -11/Scrapyard | Discovered new exit (range 15) 73 | -11/Scrapyard | Entered Materials 74 | -10/Materials | Met a group of wandering Federalists 118 | -10/Materials | Discovered new exit (range 12) 172 | -10/Materials | Discovered new exit (range 16) 326 | -10/Materials | Build established: Mutant 411 | -10/Materials | Identified exit to Mines 423 | -10/Materials | Discovered new exit (range 9) 703 | -10/Materials | Entered Subcaves 704 | -10/Subcaves | Continued accompanying wandering Federalists (4) 704 | -10/Subcaves | Approached by a straggling Scientist 707 | -10/Subcaves | Identified exit to Materials 769 | -10/Subcaves | Lost 3 allies 855 | -10/Subcaves | Shifting Twisted Machinery released Multitool 971 | -10/Subcaves | Learned location of Zion (-7) 1040 | -10/Subcaves | Visited Clippyterm 1043 | -10/Subcaves | Learned location of Section 7 (-2) 1043 | -10/Subcaves | Learned Factory emergency access door positions 1552 | -10/Subcaves | A swath of the cavern ceiling suddenly collapsed 1764 | -10/Subcaves | Visited 4L-MR0's lab 1785 | -10/Subcaves | Found Prototype Device 1785 | -10/Subcaves | Identified Sfc. Transmogrifier 1807 | -10/Subcaves | Found Maxwheels 2262 | -10/Subcaves | Discovered new exit (range 16) 2304 | -10/Subcaves | Core integrity fell below 50% 2320 | -10/Subcaves | Lost 6 parts (1p2n3w) 2789 | -10/Subcaves | Shifting Twisted Machinery released Sub. Monowheel 3202 | -10/Subcaves | Entered Recycling 3580 | -7/Recycling | Build established: Commander-Mutant 3849 | -7/Recycling | Discovered new exit (range 16) 3909 | -7/Recycling | Scanned before Scraplab entrance 3933 | -7/Recycling | Entered Scraplab 4212 | -7/Recycling | Core integrity fell below 20% 4854 | -7/Recycling | Discovered new exit (range 2) 4877 | -7/Recycling | Entered Scraptown 4877 | -7/Scraptown | Accompanied by 8 allies 5015 | -7/Scraptown | Heard Great Nut preacher, LISTEN AND RECITE! 5113 | -7/Scraptown | Scanned Subdweller tech in exchange for log data 5116 | -7/Scraptown | Learned Factory interactive machine intel 5117 | -7/Scraptown | Learned location of Armory (-4) 5119 | -7/Scraptown | Learned location of 1 exit from Upper Caves 5243 | -7/Scraptown | Discovered new exit (range 11) 5366 | -7/Scraptown | Visited Assassins FH 5424 | -7/Scraptown | Visited IN-MT5's Study 5532 | -7/Scraptown | Visited SPCMW 5600 | -7/Scraptown | Visited Symbiants 5668 | -7/Scraptown | Visited Cave Peace 5722 | -7/Scraptown | Visited TADAMA 5793 | -7/Scraptown | Visited UFD Registry 6063 | -7/Scraptown | Registered with UFD as "Biospawn" 6098 | -7/Scraptown | Visited A0-MCA Data Center 6107 | -7/Scraptown | Given a B+ rating by A0-MCA 6112 | -7/Scraptown | Found A0-MCA's Component Scanner 6148 | -7/Scraptown | Visited LU-1G1's Boring Crew 6284 | -7/Scraptown | Visited Chapter 10 6384 | -7/Scraptown | Visited Abandonware Association 6401 | -7/Scraptown | Learned abandonware demo "HACKBUD.EXE" 6401 | -7/Scraptown | Learned abandonware demo "ERRANTS.EXE" 6438 | -7/Scraptown | Visited Infowarlord's Domain 6449 | -7/Scraptown | Found Exp. Terrain Scanner 6479 | -7/Scraptown | Visited Supply Room 6511 | -7/Scraptown | Visited Observation Area 6583 | -7/Scraptown | Visited Scrapoid Pod Storage 6615 | -7/Scraptown | Visited Botcube Research 6653 | -7/Scraptown | Visited Modified Component R&D 8245 | -7/Scraptown | Found Lrg. Botcube 8284 | -7/Scraptown | Found Scrapoid Pod 8543 | -7/Scraptown | Discovered new exit (range 5) 8847 | -7/Scraptown | Entered Factory 8847 | -5/Factory | Accompanied by 7 allies 8847 | -5/Factory | Evolved 10 slots: Power x1, Propulsion x2, Utility x6, Weapon x1 8849 | -5/Factory | Loaded intel: 54 interactive machine locations 8977 | -5/Factory | Loaded intel: 8 recycling unit locations 9263 | -5/Factory | Garrison activated, responded to threat 9292 | -5/Factory | Lost 4 allies 9539 | -5/Factory | Build established: Tank 10003 | -5/Factory | Cargo convoy interrupted 10045 | -5/Factory | Attached Maxwheels, gained temporary slots: Weapon x2 10056 | -5/Factory | Core integrity fell below 50% 10099 | -5/Factory | Core integrity fell below 20% 10111 | -5/Factory | System corruption reached 10% 10155 | -5/Factory | Lost 23 parts (5p4n8u6w) 10442 | -5/Factory | Build established: Scavenger-Mutant 10556 | -5/Factory | Destroyed by X-67 Chaingunner with Heavy Machine Gun Last Messages --------------- 10478_ Acquired 1 matter. 10480_ K-01 Serf collects debris. 10481_ Discarded Imp. Fusion Compressor. 10481_ Acquired Lgt. Angular Momentum Engine. 10483_ K-01 Serf collects debris. 10487_ Acquired 22 matter. 10489_ ALERT: Suspicious intruders detected, dispatching Specialist reinforcements to area. 10489_ K-01 Serf cleans the Nuclear Reactor. 10492_ System corrupted: Heat flow error (+122). 10499_ Component scanned: Faulty Hvy. Proton Cannon. 10504_ K-01 Serf collects debris. 10517_ System corrupted: Component data lost. 10524_ Sfc. Transmogrifier converts Disruptor Cannon into Cld. Phase Cannon. 10524_ ALERT: Potential suspicious activity detected, Programmers report to Factory Zone 6Q. 10534_ Sfc. Transmogrifier converts Lgt. Angular Momentum Engine into Lgt. Fission Core. 10543_ System corrupted: IFF burst signal emitted. Map ----- +----------------------------------------------------+ | ????????????????????????????????????? | | ????????????????????????????????????? | | ????????????????????????????????????? | | ????????????????????????????????????? | | ????????????????????????????????????? | | ????????????????????????????????????? | | ????????????????????????????????????? | | ????????????????????????????????????? | | ????????????????????????????????????? | | ?????????????????????##?????????????? | | ???????????????????# ?????????????? | | ???????????????????# ?????????????? | | ???????????????????# ????????????? | | ???????????????????# ]! ????????????? | | ???????????????????# ! H???????????? | | ????????#########??# ????????????? | | ???????? T?? ????????????? | | ??????? A ??? ????????????? | | ??????? ?#+##/############# | | ??????? ?# | | ??????? """"x"""" # | | ??????# """" """" + | | ??????# """" """" # = | | ??????# """" """" # %=[ | | ??????# """" """" #####+#####/### | | ??????# """"@"""" ## =!%[=!# | | ??????# ## """ """%=# | | ??????# x ## """ """ # | | ??????########/###### """ """ # | | ?????????????# #????# # | | ?????????????# #????# """ """ + | | ?????????????# #????# """ """ ### | | ?????????????# ###### """ """ #?# | | ?????????????# + #?# | | ?????????????######## ] #?# | | ????????????????????#] ! #?# | | ????????????????????# #?# | | ????????????????????################+ | | ??????????????????????????# | | ??????????????????????????## """ " | | ???????????????????????????# """ ! " | | ???????????????????????????# """ | | ???????????????????????????# " | | ???????????????????????????# ! " | | ???????????????????????????#! | | ???????????????????????????#!! | | ???????????????????????????#! | | ???????????????????????????# = ! | | ???????????????????????????# | | ???????????????????????????# | +----------------------------------------------------+ Best States ------------- Heat Dissipation 59 Energy Generation 48 Energy Capacity 540 Matter Stores 300 Matter Capacity 300 Sight Range 16 Robot Scan Range 18 Terrain Scan Range 30 Terrain Scan Density 10 Cloak Strength 3 Armor Coverage 900 Resistance: KI 25 Resistance: TH 25 Resistance: EX 25 Resistance: EM 20 Core Shielding 10 Utility Shielding 90 Evasion (%) 63 Targeting Accuracy 8 Target Analysis 6 Armor Integrity Analysis 40 Recoil Reduction 3 Kinecelleration 40 Salvage Targeting 4 Defensive Hacking 11 Item Schematics ----------------- Adv. System Restoration Module | -7/Recycling | Hacked Adv. Targeting Computer | -7/Recycling | Hacked Lrg. Storage Unit | -7/Recycling | Hacked Robot Schematics ------------------ None Fabricated ------------ Nothing Repaired ---------- Nothing Studied --------- None Alien Tech Used ----------------- None Achievements -------------- Art Critic Mistaken Identity Strength In Numbers Challenges ------------ None Game ------ Seed TacticalZeronetDesublimator Manual? 0 Play Time 01:26:08 Cumulative 79.6 hours Start 2026.07.19 @ 18:30:44 End 2026.07.19 @ 20:09:55 Sessions 1 Manual Loads 0 Difficulty Rogue Special Mode None Game No. 45 Rogue 45 Adventurer 0 Explorer 0 Win Type - Total 0 Types 0/0/0/0/0/0/0/0/0/0 Lore% 39 Gallery% 48 Achievement% 35 Wizard Run 0 Options --------- Layout 0 ASCII 0 Keyboard 1 Movement Vi Keybinds 0 Fullscreen 1 Font 24/Smallcaps Map View 76x50 Zoom Use 0% Tactical HUD 1 Map Filters NONE Filters NONE Steam 1 RUN: 7a5c4a7a-0e49-4938-80d8-6ef5db147456